fUST/lending_fUST_20260127
["ID","MTS","AMOUNT","RATE_DAILY","PERIOD"]
[403682776,1769475037759,-161.07802995,0.00019084,2]
[403682777,1769475037768,-303.10001603,0.00019089,2]
[403682778,1769475037778,-303.10001603,0.00019089,2]
[403682780,1769475037788,-6195.8279572,0.00019169,3]
[403682782,1769475037799,-5853.5667712,0.00019169,3]
[403682783,1769475037811,-3573.05857468,0.00019169,3]
[403682785,1769475037822,-3728.817584,0.00019169,3]
[403682786,1769475037833,-1095.37123157,0.00019169,3]
[403682787,1769475037844,-1703.45085993,0.00019169,3]
[403682804,1769475040087,-3e-08,0.00019169,3]
[403682806,1769475040099,-996.56945153,0.00019169,3]
[403682808,1769475040110,-733.73686278,0.00019169,3]
[403682811,1769475040122,-14119.60070708,0.00019169,3]
[403682813,1769475040132,-5000.0,0.00019177,2]
[403682815,1769475040141,-507.9665,0.00019178,2]
[403682817,1769475040150,-507.97,0.00019178,2]
[403682819,1769475040159,-846.6109,0.00019178,2]
[403682821,1769475040168,-507.96,0.00019178,2]
[403682823,1769475040177,-151.0,0.00019178,2]
[403682825,1769475040186,-169.271396,0.00019178,2]
[403682827,1769475040195,-507.97,0.00019178,2]
[403682829,1769475040204,-507.9665,0.00019178,2]
[403682831,1769475040214,-151.0,0.00019178,2]
[403682833,1769475040223,-151.0,0.00019178,2]
[403682835,1769475040232,-846.6109,0.00019178,2]
[403682837,1769475040241,-846.6109,0.00019178,2]
[403682839,1769475040250,-846.6109,0.00019178,2]
[403682841,1769475040259,-846.6109,0.00019178,2]
[403682843,1769475040268,-507.97,0.00019178,2]
[403682845,1769475040277,-507.9665,0.00019178,2]
[403682847,1769475040286,-846.6109,0.00019178,2]
[403682849,1769475040295,-846.6109,0.00019178,2]
[403682851,1769475040305,-846.6109,0.00019178,2]
[403682853,1769475040314,-846.6109,0.00019178,2]
[403682855,1769475040322,-507.97,0.00019178,2]
[403682857,1769475040332,-330.78,0.00019178,2]
[403682859,1769475040341,-507.96,0.00019178,2]
[403682861,1769475040350,-13031.31398701,0.00019178,3]
[403682863,1769475040362,-528.89051107,0.00019178,3]
[403682865,1769475040372,-994.17067509,0.00019178,3]
[403682867,1769475040383,-755.6523831,0.00019178,3]
[403683126,1769475042876,-447.54,0.00018887,2]
[403683142,1769475043034,-4552.46,0.00018887,2]
[403683144,1769475043044,-19436.17124308,0.00019178,3]
[403683344,1769475046081,-220.91517054,0.00019177,2]
[403683345,1769475046095,-3253.80120065,0.00019178,3]
[403683346,1769475046105,-846.6109,0.00019178,2]
[403683347,1769475046115,-846.6109,0.00019178,2]
[403683348,1769475046126,-151.0,0.00019178,2]
[403683349,1769475046135,-151.0,0.00019178,2]
[403683350,1769475046145,-221.009991,0.00019178,2]
[403683351,1769475046155,-210.734102,0.00019178,2]
[403683352,1769475046164,-210.734102,0.00019178,2]
[403683353,1769475046173,-210.734102,0.00019178,2]
[403683354,1769475046183,-210.734102,0.00019178,2]
[403683355,1769475046192,-210.734102,0.00019178,2]
[403683356,1769475046202,-210.734102,0.00019178,2]
[403683357,1769475046212,-210.734102,0.00019178,2]
[403683358,1769475046221,-210.734102,0.00019178,2]
[403683359,1769475046231,-210.734102,0.00019178,2]
[403683360,1769475046241,-210.734102,0.00019178,2]
[403683361,1769475046250,-210.734102,0.00019178,2]
[403683362,1769475046259,-210.734102,0.00019178,2]
[403683363,1769475046268,-210.734102,0.00019178,2]
[403683364,1769475046278,-210.734102,0.00019178,2]
[403683365,1769475046287,-210.734102,0.00019178,2]
[403683366,1769475046297,-210.734102,0.00019178,2]
[403683367,1769475046306,-210.734102,0.00019178,2]
[403683368,1769475046316,-210.734102,0.00019178,2]
[403683369,1769475046326,-210.734102,0.00019178,2]
[403683370,1769475046335,-210.73410719,0.00019178,2]
[403683371,1769475046345,-404.98628816,0.00019178,2]
[403683372,1769475077548,314.0,0.00034569,120]
[403683373,1769475078313,1309.5,0.00034569,120]
[403683374,1769475078546,975.0,0.00034569,120]
[403683375,1769475105970,335.67,0.00030136,120]
[403683376,1769475255733,160.0,0.000301,120]
[403683377,1769475492260,500.0,0.00034562,120]
[403683382,1769475632290,500.0,0.00034567,120]
[403683384,1769475652233,-116.47435258,0.00011787,2]
[403683385,1769475652245,-54.38110332,0.00011787,2]
[403683386,1769475652255,-116.47435258,0.00012167,2]
[403683401,1769475766780,500.0,0.00034567,120]
[403683404,1769475774532,500.0,0.00034567,120]
[403683405,1769475775203,500.0,0.00034567,120]
[403683407,1769475778009,500.0,0.00034567,120]
[403683421,1769475802550,305.0716759,0.00034567,120]
[403683441,1769476037112,-588.0,0.00011513,2]
[403683442,1769476037132,-300.0,0.00011513,2]
[403683443,1769476037150,-150.45962027,0.00011514,2]
[403683444,1769476037168,-717.45529121,0.00011514,2]
[403683447,1769476162122,-300.0,0.00011513,2]
[403683448,1769476162142,-18548.51230499,0.00011514,2]
[403683449,1769476162161,-21376.16279428,0.00012228,2]
[403683450,1769476162182,-244.0159446,0.00012228,2]
[403683451,1769476162201,-500.0,0.00012228,2]
[403683452,1769476162220,-512.63588258,0.00012228,2]
[403683453,1769476162241,-500.0,0.00012228,2]
[403683454,1769476162261,-500.0,0.00012228,2]
[403683455,1769476162282,-500.0,0.00012228,2]
[403683456,1769476162301,-500.0,0.00012228,2]
[403683457,1769476162321,-500.0,0.00012228,2]
[403683458,1769476162341,-500.0,0.00012228,2]
[403683459,1769476162362,-500.0,0.00012228,2]
[403683460,1769476162381,-500.0,0.00012228,2]
[403683461,1769476162401,-500.0,0.00012228,2]
[403683462,1769476162421,-500.0,0.00012228,2]
[403683463,1769476162443,-500.0,0.00012228,2]
[403683464,1769476162468,-500.0,0.00012228,2]
[403683465,1769476162488,-500.0,0.00012228,2]
[403683466,1769476162509,-273.24505624,0.00012228,2]
[403683467,1769476162531,-246.66583309,0.00012228,2]
[403683468,1769476162552,-500.0,0.00012228,2]
[403683469,1769476162573,-500.0,0.00012228,2]
[403683470,1769476162593,-241.20854835,0.00012228,2]
[403683471,1769476162613,-251.19763716,0.00012228,2]
[403683472,1769476162632,-500.0,0.00012228,2]
[403683473,1769476162651,-500.0,0.00012228,2]
[403683474,1769476162672,-500.0,0.00012228,2]
[403683475,1769476162693,-379.23255681,0.00012329,2]
[403683514,1769476231900,-736.83878342,0.00012205,2]
[403683515,1769476231912,-711.79157356,0.00012205,2]
[403683516,1769476231924,-629.30076944,0.00012205,2]
[403683517,1769476231935,-2922.06887358,0.00012205,2]
[403683518,1769476231945,-335.33744319,0.00012329,2]
[403683519,1769476231954,-851.35,0.00012329,2]
[403683520,1769476231964,-300.0,0.00013272,2]
[403683521,1769476231973,-500.0,0.00013273,2]
[403683522,1769476231983,-500.0,0.00013273,2]
[403683523,1769476231992,-500.0,0.00013273,2]
[403683524,1769476232002,-500.0,0.00013273,2]
[403683525,1769476232012,-500.0,0.00013273,2]
[403683526,1769476232021,-500.0,0.00013273,2]
[403683527,1769476232032,-177.54235192,0.00013514,2]
[403683528,1769476232042,-1000.0,0.00013699,2]
[403683529,1769476232053,-501.29959982,0.00013699,2]
[403683530,1769476232062,-228.02056982,0.00013699,2]
[403683531,1769476232072,-500.0,0.00013699,2]
[403683532,1769476232081,-500.0,0.00013821,2]
[403683533,1769476232091,-500.0,0.00013821,2]
[403683534,1769476232100,-1000.0,0.00013821,2]
[403683535,1769476232109,-500.0,0.00013821,2]
[403683536,1769476232118,-500.0,0.00014247,2]
[403683537,1769476232128,-500.0,0.00014368,2]
[403683538,1769476232137,-420.0,0.00014551,2]
[403683539,1769476232147,-157.43607312,0.00014739,2]
[403683540,1769476232156,-178.92208645,0.00014739,2]
[403683541,1769476232165,-418.0,0.00015242,2]
[403683542,1769476232175,-179.0,0.00015242,2]
[403683543,1769476232185,-500.0,0.000154,2]
[403683544,1769476232194,-204.62508357,0.00015514,2]
[403683545,1769476232203,-150.298,0.00015944,2]
[403683546,1769476232212,-150.7,0.00015944,2]
[403683547,1769476232221,-150.148,0.00015944,2]
[403683548,1769476232230,-150.0,0.00016,2]
[403683549,1769476232239,-155.741,0.00016385,2]
[403683550,1769476232248,-250.0,0.00016438,2]
[403683551,1769476232257,-507.73542644,0.00016456,5]
[403683552,1769476232267,-161.0,0.00016932,3]
[403683553,1769476232276,-132.44114443,0.00017209,2]
[403683554,1769476232460,-195.10165683,0.00017209,2]
[403683555,1769476232481,-172.45719874,0.00017209,2]
[403683556,1769476232490,-181.03944971,0.00017316,2]
[403683557,1769476232498,-231.70781522,0.00017514,2]
[403683558,1769476232507,-728.32666867,0.00017881,2]
[403683570,1769476238050,-71.67333133,0.00017881,2]
[403683571,1769476238061,-179.73040439,0.00018088,2]
[403683572,1769476238071,-45.68400285,0.00018242,2]
[403683573,1769476238107,-372.31599715,0.00018242,2]
[403683574,1769476238123,-179.0,0.00018242,2]
[403683575,1769476238134,-303.10001603,0.000189,2]
[403683576,1769476238144,-303.10001603,0.000189,2]
[403683577,1769476238154,-4634.24786012,0.0001899,2]
[403683578,1769476238166,-46624.29921706,0.0001899,2]
[403683579,1769476238175,-151.0,0.00019,2]
[403683580,1769476238185,-1041.66666667,0.0001904,2]
[403683581,1769476238194,-303.10001603,0.00019089,2]
[403683582,1769476238204,-303.10001603,0.00019089,2]
[403683583,1769476238214,-443.25895827,0.00019169,2]
[403683584,1769476238223,-223.07540286,0.00019169,2]
[403683585,1769476238233,-401.53572515,0.00019169,2]
[403683586,1769476238244,-713.84128916,0.00019169,2]
[403683587,1769476238253,-5000.0,0.00019177,2]
[403683588,1769476238265,-170.81116122,0.00019177,2]
[403683589,1769476238275,-206.03294333,0.00019177,2]
[403683590,1769476238285,-26373.61626321,0.00019178,3]
[403683591,1769476238294,-507.97,0.00019178,2]
[403683592,1769476238304,-846.6109,0.00019178,2]
[403683593,1769476238315,-507.9665,0.00019178,2]
[403683594,1769476238324,-369.32,0.00019178,2]
[403683595,1769476238335,-846.6109,0.00019178,2]
[403683596,1769476238345,-846.6109,0.00019178,2]
[403683597,1769476238355,-169.33,0.00019178,2]
[403683598,1769476238364,-507.9665,0.00019178,2]
[403683599,1769476238374,-169.32,0.00019178,2]
[403683600,1769476238564,-846.6109,0.00019178,2]
[403683601,1769476238575,-169.33,0.00019178,2]
[403683602,1769476238586,-677.29,0.00019178,2]
[403683603,1769476238596,-846.61,0.00019178,2]
[403683604,1769476238606,-169.32,0.00019178,2]
[403683605,1769476238616,-169.33,0.00019178,2]
[403683606,1769476238626,-151.0,0.00019178,2]
[403683607,1769476238637,-151.0,0.00019178,2]
[403683608,1769476238647,-151.0,0.00019178,2]
[403683609,1769476238656,-151.0,0.00019178,2]
[403683610,1769476238671,-151.0,0.00019178,2]
[403683611,1769476238681,-151.0,0.00019178,2]
[403683612,1769476238691,-151.0,0.00019178,2]
[403683613,1769476238702,-151.0,0.00019178,2]
[403683614,1769476238712,-241.358688,0.00019178,2]
[403683615,1769476238723,-846.6109,0.00019178,2]
[403683616,1769476238735,-151.0,0.00019178,2]
[403683617,1769476238746,-151.0,0.00019178,2]
[403683618,1769476238757,-151.0,0.00019178,2]
[403683619,1769476238767,-151.0,0.00019178,2]
[403683620,1769476238777,-151.0,0.00019178,2]
[403683621,1769476238787,-299.903132,0.00019178,2]
[403683622,1769476238797,-151.0,0.00019178,2]
[403683623,1769476238808,-151.0,0.00019178,2]
[403683624,1769476238817,-151.0,0.00019178,2]
[403683625,1769476238828,-151.0,0.00019178,2]
[403683626,1769476238839,-151.0,0.00019178,2]
[403683627,1769476238849,-151.0,0.00019178,2]
[403683628,1769476238859,-151.0,0.00019178,2]
[403683629,1769476238869,-151.0,0.00019178,2]
[403683630,1769476238879,-151.0,0.00019178,2]
[403683631,1769476238889,-251.579513,0.00019178,2]
[403683632,1769476238900,-151.0,0.00019178,2]
[403683633,1769476238910,-151.0,0.00019178,2]
[403683634,1769476238921,-151.0,0.00019178,2]
[403683635,1769476238931,-151.0,0.00019178,2]
[403683636,1769476238942,-151.0,0.00019178,2]
[403683637,1769476238952,-151.0,0.00019178,2]
[403683638,1769476238963,-151.0,0.00019178,2]
[403683639,1769476238973,-151.0,0.00019178,2]
[403683640,1769476238983,-151.0,0.00019178,2]
[403683641,1769476238994,-253.295643,0.00019178,2]
[403683642,1769476239003,-151.0,0.00019178,2]
[403683643,1769476239013,-151.0,0.00019178,2]
[403683644,1769476239023,-151.0,0.00019178,2]
[403683645,1769476239033,-151.0,0.00019178,2]
[403683646,1769476239044,-151.0,0.00019178,2]
[403683647,1769476239054,-151.0,0.00019178,2]
[403683648,1769476239063,-151.0,0.00019178,2]
[403683649,1769476239073,-151.0,0.00019178,2]
[403683650,1769476239084,-288.574424,0.00019178,2]
[403683651,1769476239094,-165.899546,0.00019178,2]
[403683652,1769476239104,-165.899546,0.00019178,2]
[403683653,1769476239114,-165.899546,0.00019178,2]
[403683654,1769476239125,-165.899546,0.00019178,2]
[403683655,1769476239135,-165.899546,0.00019178,2]
[403683656,1769476239146,-165.899546,0.00019178,2]
[403683657,1769476239155,-165.899546,0.00019178,2]
[403683658,1769476239165,-165.899546,0.00019178,2]
[403683659,1769476239175,-165.899546,0.00019178,2]
[403683660,1769476239184,-165.899546,0.00019178,2]
[403683661,1769476239194,-165.899546,0.00019178,2]
[403683662,1769476239204,-165.899546,0.00019178,2]
[403683663,1769476239213,-151.0,0.00019178,2]
[403683664,1769476239223,-151.0,0.00019178,2]
[403683665,1769476239232,-151.0,0.00019178,2]
[403683666,1769476239242,-151.0,0.00019178,2]
[403683667,1769476239251,-151.0,0.00019178,2]
[403683668,1769476239261,-151.0,0.00019178,2]
[403683669,1769476239272,-151.0,0.00019178,2]
[403683670,1769476239281,-151.0,0.00019178,2]
[403683671,1769476239291,-151.0,0.00019178,2]
[403683672,1769476239301,-151.0,0.00019178,2]
[403683673,1769476239311,-151.0,0.00019178,2]
[403683674,1769476239320,-151.0,0.00019178,2]
[403683675,1769476239328,-151.0,0.00019178,2]
[403683676,1769476239338,-151.0,0.00019178,2]
[403683677,1769476239347,-151.0,0.00019178,2]
[403683678,1769476239356,-151.0,0.00019178,2]
[403683679,1769476239366,-151.0,0.00019178,2]
[403683680,1769476239375,-151.0,0.00019178,2]
[403683682,1769476239384,-164.419897,0.00019178,2]
[403683683,1769476239393,-151.0,0.00019178,2]
[403683684,1769476239403,-151.0,0.00019178,2]
[403683685,1769476239413,-151.0,0.00019178,2]
[403683686,1769476239422,-151.0,0.00019178,2]
[403683687,1769476239432,-151.0,0.00019178,2]
[403683688,1769476239441,-151.0,0.00019178,2]
[403683689,1769476239451,-151.0,0.00019178,2]
[403683690,1769476239460,-151.0,0.00019178,2]
[403683691,1769476239470,-151.0,0.00019178,2]
[403683692,1769476239483,-151.0,0.00019178,2]
[403683693,1769476239493,-152.972032,0.00019178,2]
[403683694,1769476239503,-151.0,0.00019178,2]
[403683695,1769476239512,-232.865923,0.00019178,2]
[403683696,1769476239523,-234.857749,0.00019178,2]
[403683697,1769476239532,-234.857749,0.00019178,2]
[403683698,1769476239541,-234.857749,0.00019178,2]
[403683699,1769476239552,-234.857749,0.00019178,2]
[403683700,1769476239561,-234.857749,0.00019178,2]
[403683701,1769476239574,-234.857749,0.00019178,2]
[403683702,1769476239584,-234.857749,0.00019178,2]
[403683703,1769476239594,-234.857749,0.00019178,2]
[403683704,1769476239604,-188.122471,0.00019178,2]
[403683705,1769476239614,-151.0,0.00019178,2]
[403683706,1769476239623,-151.0,0.00019178,2]
[403683707,1769476239632,-151.0,0.00019178,2]
[403683709,1769476239643,-151.0,0.00019178,2]
[403683710,1769476239652,-151.0,0.00019178,2]
[403683711,1769476239662,-151.0,0.00019178,2]
[403683712,1769476239672,-151.0,0.00019178,2]
[403683713,1769476239682,-151.0,0.00019178,2]
[403683714,1769476239691,-190.876325,0.00019178,2]
[403683715,1769476239700,-157.458594,0.00019178,2]
[403683716,1769476239709,-190.876325,0.00019178,2]
[403683717,1769476239719,-190.876325,0.00019178,2]
[403683718,1769476239728,-190.876325,0.00019178,2]
[403683719,1769476239737,-190.876325,0.00019178,2]
[403683720,1769476239748,-190.876325,0.00019178,2]
[403683721,1769476239758,-190.876325,0.00019178,2]
[403683722,1769476239767,-190.876325,0.00019178,2]
[403683723,1769476239777,-182.048064,0.00019178,2]
[403683724,1769476239786,-182.048064,0.00019178,2]
[403683725,1769476239797,-182.048064,0.00019178,2]
[403683726,1769476239806,-182.048064,0.00019178,2]
[403683727,1769476239816,-182.048064,0.00019178,2]
[403683728,1769476239827,-182.048064,0.00019178,2]
[403683729,1769476239837,-182.048064,0.00019178,2]
[403683730,1769476239847,-182.048064,0.00019178,2]
[403683731,1769476239856,-151.0,0.00019178,2]
[403683732,1769476239866,-263.81,0.00019178,2]
[403683733,1769476239875,-151.0,0.00019178,2]
[403683735,1769476239884,-151.0,0.00019178,2]
[403683736,1769476239893,-812.787347,0.00019178,2]
[403683737,1769476239902,-812.787347,0.00019178,2]
[403683738,1769476239910,-812.787347,0.00019178,2]
[403683739,1769476239919,-812.787347,0.00019178,2]
[403683740,1769476239928,-812.787347,0.00019178,2]
[403683741,1769476239938,-812.787347,0.00019178,2]
[403683742,1769476239948,-151.0,0.00019178,2]
[403683743,1769476239957,-812.787347,0.00019178,2]
[403683745,1769476239967,-151.0,0.00019178,2]
[403683747,1769476239977,-812.787347,0.00019178,2]
[403683748,1769476239987,-151.0,0.00019178,2]
[403683750,1769476239998,-151.0,0.00019178,2]
[403683752,1769476240007,-151.0,0.00019178,2]
[403683753,1769476240016,-80.76247251,0.00019178,2]
[403683765,1769476240189,-70.23752749,0.00019178,2]
[403683767,1769476240199,-151.0,0.00019178,2]
[403683768,1769476240208,-83.83414841,0.00019178,2]
[403683983,1769476243148,-2110.0,0.00017702,2]
[403684000,1769476243309,-1660.14589619,0.00017702,2]
[403684156,1769476246195,-1229.85410381,0.00017702,2]
[403684157,1769476246204,-67.16585159,0.00019178,2]
[403684158,1769476246214,-151.0,0.00019178,2]
[403684159,1769476246223,-161.450749,0.00019178,2]
[403684160,1769476246232,-151.0,0.00019178,2]
[403684161,1769476246242,-151.0,0.00019178,2]
[403684162,1769476246251,-151.0,0.00019178,2]
[403684163,1769476246260,-151.0,0.00019178,2]
[403684164,1769476246270,-151.0,0.00019178,2]
[403684165,1769476246279,-151.0,0.00019178,2]
[403684166,1769476246289,-53.89778006,0.00019178,2]
[403684169,1769476251938,787.0,0.00034567,120]
[403684170,1769476252073,1502.0,0.00034567,120]
[403684171,1769476252391,1842.0,0.00034567,120]
[403684172,1769476267031,456.5,0.00034567,120]
[403684173,1769476341029,302.0,0.00034567,120]
[403684174,1769476429072,500.0,0.00034567,120]
[403684175,1769476756803,-817.73632915,0.00011389,2]
[403684176,1769476812767,500.0,0.00034577,120]
[403684177,1769476813023,500.0,0.00034577,120]
[403684178,1769476813295,500.0,0.00034577,120]
[403684179,1769476846991,500.0,0.00034577,120]
[403684180,1769476847257,500.0,0.00034577,120]
[403684184,1769477113362,500.0,0.00034577,120]
[403684185,1769477113652,500.0,0.00034577,120]
[403684186,1769477130135,-182.44755838,0.00010388,2]
[403684188,1769477227126,-513.80844122,0.00010388,2]
[403684189,1769477227147,-300.0,0.00011387,2]
[403684190,1769477227168,-404.70695558,0.00011387,2]
[403684191,1769477241102,-394.25888754,0.00011273,2]
[403684193,1769477349100,-4605.74111246,0.00011273,2]
[403684194,1769477349121,-150.0,0.0001133,2]
[403684195,1769477349142,-795.29304442,0.00011387,2]
[403684196,1769477349163,-300.0,0.00011387,2]
[403684197,1769477349186,-500.0,0.00011388,2]
[403684198,1769477349206,-500.0,0.00011388,2]
[403684199,1769477349227,-500.0,0.00011388,2]
[403684200,1769477349248,-500.0,0.00011388,2]
[403684201,1769477349268,-500.0,0.00011388,2]
[403684202,1769477349287,-500.0,0.00011388,2]
[403684203,1769477349308,-500.0,0.00011388,2]
[403684204,1769477349328,-500.0,0.00011388,2]
[403684205,1769477349348,-500.0,0.00011388,2]
[403684206,1769477349369,-500.0,0.00011388,2]
[403684207,1769477349390,-500.0,0.00011388,2]
[403684208,1769477349410,-500.0,0.00011388,2]
[403684209,1769477349430,-500.0,0.00011388,2]
[403684210,1769477349449,-500.0,0.00011388,2]
[403684211,1769477349468,-500.0,0.00011388,2]
[403684212,1769477349488,-500.0,0.00011388,2]
[403684213,1769477349516,-500.0,0.00011388,2]
[403684214,1769477349538,-500.0,0.00011388,2]
[403684215,1769477349560,-500.0,0.00011388,2]
[403684216,1769477349581,-500.0,0.00011388,2]
[403684217,1769477349601,-519.57173405,0.00011388,2]
[403684218,1769477349621,-500.0,0.00011388,2]
[403684219,1769477349642,-500.0,0.00011388,2]
[403684220,1769477349662,-500.0,0.00011388,2]
[403684221,1769477349683,-500.0,0.00011388,2]
[403684222,1769477349702,-500.0,0.00011388,2]
[403684223,1769477349723,-500.0,0.00011388,2]
[403684224,1769477349748,-500.0,0.00011388,2]
[403684225,1769477349767,-500.0,0.00011388,2]
[403684226,1769477349789,-525.37609846,0.00011388,2]
[403684227,1769477349812,-500.0,0.00011388,2]
[403684228,1769477349833,-644.86749294,0.00011388,2]
[403684229,1769477349852,-500.0,0.00011388,2]
[403684230,1769477349872,-500.0,0.00011388,2]
[403684231,1769477349892,-500.0,0.00011388,2]
[403684232,1769477349913,-500.0,0.00011388,2]
[403684233,1769477349933,-500.0,0.00011388,2]
[403684234,1769477349952,-500.0,0.00011388,2]
[403684235,1769477349972,-500.0,0.00011388,2]
[403684236,1769477349995,-500.0,0.00011388,2]
[403684237,1769477350015,-500.0,0.00011388,2]
[403684238,1769477350035,-500.0,0.00011388,2]
[403684239,1769477350054,-500.0,0.00011388,2]
[403684240,1769477350075,-500.0,0.00011388,2]
[403684241,1769477350097,-610.13012648,0.00011388,2]
[403684242,1769477350117,-500.0,0.00011388,2]
[403684243,1769477350137,-500.0,0.00011388,2]
[403684244,1769477350157,-500.0,0.00011388,2]
[403684245,1769477350177,-500.0,0.00011388,2]
[403684246,1769477350198,-500.0,0.00011388,2]
[403684247,1769477350219,-500.0,0.00011388,2]
[403684248,1769477350241,-500.0,0.00011388,2]
[403684249,1769477350262,-500.0,0.00011388,2]
[403684250,1769477350282,-500.0,0.00011388,2]
[403684251,1769477350303,-500.0,0.00011388,2]
[403684252,1769477350328,-500.0,0.00011388,2]
[403684253,1769477350353,-500.0,0.00011388,2]
[403684254,1769477350372,-500.0,0.00011388,2]
[403684255,1769477350392,-500.0,0.00011388,2]
[403684256,1769477350411,-500.0,0.00011388,2]
[403684257,1769477350431,-500.0,0.00011388,2]
[403684258,1769477350451,-500.0,0.00011388,2]
[403684259,1769477350470,-500.0,0.00011388,2]
[403684260,1769477350489,-500.0,0.00011388,2]
[403684261,1769477350508,-633.50646605,0.00011388,2]
[403684262,1769477350527,-99959.01818635,0.00011389,2]
[403684263,1769477350546,-580.0,0.00011389,2]
[403684264,1769477350565,-152.91848167,0.0001212,2]
[403684265,1769477350589,-110545.50092449,0.00012128,2]
[403684268,1769477364116,-5000.0,0.00012006,2]
[403684269,1769477364140,-29798.07784886,0.00012128,2]
[403684271,1769477404321,283.87467201,0.00034577,120]
[403684272,1769477408466,285.8612128,0.00034577,120]
[403684273,1769477427937,152.6181063,0.00034577,120]
[403684284,1769477432119,-599.7704835,0.00012006,2]
[403684285,1769477432130,-1742.55011859,0.00012006,2]
[403684286,1769477432156,-376.0677322,0.00012006,2]
[403684288,1769477432169,-2281.61166571,0.00012006,2]
[403684290,1769477432178,-589.0,0.00012006,2]
[403684292,1769477432187,-153.24603462,0.0001212,2]
[403684294,1769477432196,-231.76442113,0.00013173,2]
[403684296,1769477432206,-500.0,0.00013273,2]
[403684298,1769477432215,-500.0,0.00013273,2]
[403684300,1769477432224,-104.66895027,0.00013273,2]
[403684304,1769477432235,-395.33104973,0.00013273,2]
[403684307,1769477432245,-500.0,0.00013273,2]
[403684310,1769477432254,-500.0,0.00013273,2]
[403684312,1769477432264,-177.0,0.0001333,2]
[403684317,1769477432274,-1041.66666667,0.00013378,2]
[403684320,1769477432283,-1000.0,0.00013821,2]
[403684323,1769477432293,-538.97903659,0.00013821,2]
[403684326,1769477432302,-507.8906543,0.00013821,2]
[403684328,1769477432312,-471.13041489,0.00013821,2]
[403684331,1769477432321,-500.0,0.00014368,2]
[403684334,1769477432330,-231.76442111,0.00014649,2]
[403684336,1769477432339,-204.0,0.0001533,2]
[403684337,1769477432349,-57820.7648591,0.000154,2]
[403684338,1769477432358,-418.0,0.00015944,2]
[403684339,1769477432368,-179.0,0.00015944,2]
[403684341,1769477432378,-231.76442111,0.00016126,2]
[403684342,1769477432387,-281.706428,0.0001635,2]
[403684343,1769477432396,-250.0,0.00016438,2]
[403684344,1769477432405,-155.741,0.00016933,2]
[403684345,1769477432414,-231.0,0.0001733,2]
[403684346,1769477432424,-500.0,0.00017435,2]
[403684348,1769477432434,-231.76442111,0.00017602,2]
[403684349,1769477432443,-3062.98,0.00017667,2]
[403684350,1769477432453,-150.0,0.00018045,2]
[403684351,1769477432466,-179.73040439,0.00018088,2]
[403684352,1769477432475,-154.33745035,0.00018112,2]
[403684354,1769477432485,-335.39216721,0.0001814,7]
[403684355,1769477432495,-150.0,0.00018182,2]
[403684356,1769477432505,-150.0,0.00018319,2]
[403684357,1769477432514,-729.0,0.000184,2]
[403684358,1769477432524,-150.0,0.00018456,2]
[403684360,1769477432533,-260.0,0.00018593,2]
[403684362,1769477432543,-303.10001603,0.000189,2]
[403684364,1769477432553,-303.10001603,0.000189,2]
[403684366,1769477432563,-385.14,0.00018944,2]